fUSD/lending_fUSD_20260515
["ID","MTS","AMOUNT","RATE_DAILY","PERIOD"]
[422282762,1778793044000,-652.143794,0.00015068,2]
[422282760,1778793044000,-652.143794,0.00015068,2]
[422282764,1778793044000,-652.143794,0.00015068,2]
[422282757,1778793044000,-5830.63211755,0.00015046,2]
[422282755,1778793044000,-174.59413152,0.00015036,2]
[422282763,1778793044000,-652.143794,0.00015068,2]
[422282754,1778793044000,-350.0,0.0001501,2]
[422282765,1778793044000,-652.143794,0.00015068,2]
[422282767,1778793044000,-652.143794,0.00015068,2]
[422282756,1778793044000,-151.0,0.00015042,2]
[422282777,1778793044000,-652.143794,0.00015068,2]
[422282772,1778793044000,-652.143794,0.00015068,2]
[422282766,1778793044000,-652.143794,0.00015068,2]
[422282769,1778793044000,-652.143794,0.00015068,2]
[422282776,1778793044000,-652.143794,0.00015068,2]
[422282774,1778793044000,-652.143794,0.00015068,2]
[422282771,1778793044000,-652.143794,0.00015068,2]
[422282773,1778793044000,-652.143794,0.00015068,2]
[422282775,1778793044000,-652.143794,0.00015068,2]
[422282770,1778793044000,-652.143794,0.00015068,2]
[422282779,1778793044000,-480.43,0.00015068,2]
[422282790,1778793044000,-201.93286099,0.00015315,2]
[422282789,1778793044000,-6307.32176473,0.00015307,2]
[422282781,1778793044000,-1491.22,0.000151,2]
[422282782,1778793044000,-151.0,0.00015152,2]
[422282768,1778793044000,-652.143794,0.00015068,2]
[422282753,1778793044000,-151.0,0.00015,2]
[422282722,1778793044000,-418.151872,0.00015,2]
[422282749,1778793044000,-151.0,0.00015,2]
[422282785,1778793044000,-151.0,0.00015207,2]
[422282723,1778793044000,-418.151872,0.00015,2]
[422282721,1778793044000,-418.151872,0.00015,2]
[422282724,1778793044000,-418.151872,0.00015,2]
[422282725,1778793044000,-418.151872,0.00015,2]
[422282726,1778793044000,-418.151872,0.00015,2]
[422282728,1778793044000,-418.151864,0.00015,2]
[422282732,1778793044000,-151.0,0.00015,2]
[422282730,1778793044000,-151.0,0.00015,2]
[422282737,1778793044000,-151.0,0.00015,2]
[422282733,1778793044000,-151.0,0.00015,2]
[422282727,1778793044000,-151.0,0.00015,2]
[422282738,1778793044000,-196.934281,0.00015,2]
[422282731,1778793044000,-151.0,0.00015,2]
[422282729,1778793044000,-151.0,0.00015,2]
[422282734,1778793044000,-151.0,0.00015,2]
[422282736,1778793044000,-151.0,0.00015,2]
[422282735,1778793044000,-151.0,0.00015,2]
[422282739,1778793044000,-151.0,0.00015,2]
[422282741,1778793044000,-151.0,0.00015,2]
[422282742,1778793044000,-151.0,0.00015,2]
[422282750,1778793044000,-151.0,0.00015,2]
[422282740,1778793044000,-151.0,0.00015,2]
[422282751,1778793044000,-151.0,0.00015,2]
[422282747,1778793044000,-151.0,0.00015,2]
[422282744,1778793044000,-281.083177,0.00015,2]
[422282743,1778793044000,-151.0,0.00015,2]
[422282745,1778793044000,-151.0,0.00015,2]
[422282746,1778793044000,-151.0,0.00015,2]
[422282748,1778793044000,-151.0,0.00015,2]
[422282780,1778793044000,-151.0,0.00015097,2]
[422282778,1778793044000,-652.143792,0.00015068,2]
[422282786,1778793044000,-15000.0,0.00015208,2]
[422282819,1778793044000,-200.0,0.00015863,2]
[422282822,1778793044000,-187.78006525,0.00015863,2]
[422282823,1778793044000,-589.06985741,0.00015863,2]
[422282824,1778793044000,-2080.17592889,0.00015863,2]
[422282828,1778793044000,-300.0,0.00016,2]
[422282830,1778793044000,-229.87005247,0.0001611,15]
[422282831,1778793044000,-8183.64,0.00016116,2]
[422282825,1778793044000,-301.00069851,0.00015863,2]
[422282827,1778793044000,-209.40437684,0.00015863,2]
[422282826,1778793044000,-151.0,0.00015863,2]
[422282833,1778793044000,-217.15233878,0.00016411,2]
[422282843,1778793044000,-2254.1,0.00016438,2]
[422282832,1778793044000,-201.93286099,0.00016136,2]
[422282838,1778793044000,-194.72792766,0.00016411,2]
[422282829,1778793044000,-163.89776066,0.00016086,2]
[422282835,1778793044000,-200.0,0.00016411,2]
[422282837,1778793044000,-217.15233878,0.00016411,2]
[422282836,1778793044000,-829.12830338,0.00016411,2]
[422282839,1778793044000,-2157.14243826,0.00016411,2]
[422282840,1778793044000,-312.13772435,0.00016411,2]
[422282842,1778793044000,-217.15233878,0.00016411,2]
[422282841,1778793044000,-232.58182938,0.00016411,2]
[422282846,1778793044000,-283.35,0.00016438,2]
[422282845,1778793044000,-616.92635506,0.00016438,2]
[422282847,1778793044000,-238.57788094,0.00016438,2]
[422282850,1778793044000,-151.0,0.00016438,2]
[422282848,1778793044000,-151.0,0.00016438,2]
[422282849,1778793044000,-151.0,0.00016438,2]
[422282784,1778793044000,-1291.11,0.000152,2]
[422282851,1778793044000,-151.0,0.00016438,2]
[422282834,1778793044000,-1481.23780761,0.00016411,2]
[422282821,1778793044000,-209.40437684,0.00015863,2]
[422282844,1778793044000,-207.0,0.00016438,2]
[422282818,1778793044000,-1428.38747117,0.00015863,2]
[422282820,1778793044000,-799.54513345,0.00015863,2]
[422282788,1778793044000,-151.0,0.00015262,2]
[422282783,1778793044000,-8508.0,0.000152,2]
[422282792,1778793044000,-200.0,0.00015315,2]
[422282802,1778793044000,-11251.29414824,0.00015355,2]
[422282804,1778793044000,-15000.0,0.0001538,2]
[422282803,1778793044000,-151.0,0.00015372,2]
[422282791,1778793044000,-1377.42282659,0.00015315,2]
[422282797,1778793044000,-2005.9555727,0.00015315,2]
[422282799,1778793044000,-151.0,0.00015315,2]
[422282801,1778793044000,-151.0,0.00015317,2]
[422282800,1778793044000,-201.93286099,0.00015315,2]
[422282794,1778793044000,-201.93286099,0.00015315,2]
[422282793,1778793044000,-771.01748645,0.00015315,2]
[422282796,1778793044000,-668.65185757,0.00015315,2]
[422282787,1778793044000,-6111.0,0.00015253,2]
[422282795,1778793044000,-181.08010149,0.00015315,2]
[422282798,1778793044000,-290.26104003,0.00015315,2]
[422282814,1778793044000,-772.0,0.00015618,2]
[422282815,1778793044000,-2442.0,0.00015718,2]
[422282811,1778793044000,-6111.0,0.00015515,2]
[422282812,1778793044000,-5544.0,0.0001555,2]
[422282810,1778793044000,-6111.0,0.00015514,2]
[422282809,1778793044000,-6111.0,0.00015482,2]
[422282813,1778793044000,-15000.0,0.00015612,2]
[422282807,1778793044000,-15000.0,0.00015466,2]
[422282805,1778793044000,-151.0,0.00015427,2]
[422282817,1778793044000,-209.40437684,0.00015863,2]
[422282808,1778793044000,-155.7367363,0.00015479,2]
[422282806,1778793044000,-9035.0,0.00015439,2]
[422282816,1778793044000,-238.76,0.000158,2]
[422282898,1778793045000,-2827.732606,0.00016438,2]
[422282886,1778793045000,-2827.732606,0.00016438,2]
[422282889,1778793045000,-2827.732606,0.00016438,2]
[422282895,1778793045000,-2827.732606,0.00016438,2]
[422282892,1778793045000,-2827.732606,0.00016438,2]
[422282894,1778793045000,-2827.732606,0.00016438,2]
[422282897,1778793045000,-2827.732606,0.00016438,2]
[422282888,1778793045000,-2827.732606,0.00016438,2]
[422282887,1778793045000,-2827.732606,0.00016438,2]
[422282890,1778793045000,-2827.732606,0.00016438,2]
[422282896,1778793045000,-2827.732606,0.00016438,2]
[422282891,1778793045000,-2827.732606,0.00016438,2]
[422282893,1778793045000,-2827.732606,0.00016438,2]
[422282908,1778793045000,-448.63,0.00016474,2]
[422282902,1778793045000,-2827.732606,0.00016438,2]
[422282904,1778793045000,-151.0,0.00016438,2]
[422282901,1778793045000,-2827.732606,0.00016438,2]
[422282906,1778793045000,-151.0,0.00016438,2]
[422282900,1778793045000,-2827.732606,0.00016438,2]
[422282905,1778793045000,-151.0,0.00016438,2]
[422282909,1778793045000,-4442.34461827,0.000165,2]
[422282903,1778793045000,-2827.73259792,0.00016438,2]
[422282911,1778793045000,-2172.35911899,0.00016597,2]
[422282915,1778793045000,-2172.35911899,0.00016694,2]
[422282910,1778793045000,-7431.94628016,0.000165,2]
[422282912,1778793045000,-2172.35911899,0.00016601,2]
[422282907,1778793045000,-480.43,0.00016438,2]
[422282914,1778793045000,-2172.35911899,0.00016691,2]
[422282881,1778793045000,-324.631653,0.00016438,2]
[422282899,1778793045000,-2827.732606,0.00016438,2]
[422282879,1778793045000,-324.631653,0.00016438,2]
[422282856,1778793045000,-151.0,0.00016438,2]
[422282880,1778793045000,-324.631653,0.00016438,2]
[422282924,1778793045000,-150.0,0.00016756,2]
[422282858,1778793045000,-151.0,0.00016438,2]
[422282857,1778793045000,-151.0,0.00016438,2]
[422282852,1778793045000,-151.0,0.00016438,2]
[422282854,1778793045000,-151.0,0.00016438,2]
[422282853,1778793045000,-151.0,0.00016438,2]
[422282855,1778793045000,-151.0,0.00016438,2]
[422282860,1778793045000,-151.0,0.00016438,2]
[422282870,1778793045000,-324.631653,0.00016438,2]
[422282861,1778793045000,-151.0,0.00016438,2]
[422282867,1778793045000,-324.631653,0.00016438,2]
[422282863,1778793045000,-324.631653,0.00016438,2]
[422282865,1778793045000,-324.631653,0.00016438,2]
[422282868,1778793045000,-324.631653,0.00016438,2]
[422282878,1778793045000,-324.631653,0.00016438,2]
[422282859,1778793045000,-151.0,0.00016438,2]
[422282869,1778793045000,-324.631653,0.00016438,2]
[422282866,1778793045000,-324.631653,0.00016438,2]
[422282864,1778793045000,-324.631653,0.00016438,2]
[422282871,1778793045000,-324.631653,0.00016438,2]
[422282884,1778793045000,-2827.732606,0.00016438,2]
[422282873,1778793045000,-324.631653,0.00016438,2]
[422282883,1778793045000,-154.22364052,0.00016438,2]
[422282885,1778793045000,-2827.732606,0.00016438,2]
[422282874,1778793045000,-324.631653,0.00016438,2]
[422282872,1778793045000,-324.631653,0.00016438,2]
[422282877,1778793045000,-324.631653,0.00016438,2]
[422282875,1778793045000,-324.631653,0.00016438,2]
[422282882,1778793045000,-324.631645,0.00016438,2]
[422282876,1778793045000,-324.631653,0.00016438,2]
[422282862,1778793045000,-151.0,0.00016438,2]
[422282919,1778793045000,-150.0,0.00016756,2]
[422282922,1778793045000,-150.0,0.00016756,2]
[422282925,1778793045000,-150.0,0.00016756,2]
[422282953,1778793045000,-370.8,0.00017397,2]
[422282963,1778793045000,-312.36203107,0.00017507,2]
[422282964,1778793045000,-219.0,0.00017699,2]
[422282951,1778793045000,-207.0,0.0001726,2]
[422282956,1778793045000,-695.39793187,0.00017506,2]
[422282955,1778793045000,-599.60298507,0.00017506,2]
[422282960,1778793045000,-209.40437684,0.00017507,2]
[422282958,1778793045000,-891.61887448,0.00017507,2]
[422282954,1778793045000,-209.40437684,0.00017505,2]
[422282961,1778793045000,-2319.72410669,0.00017507,2]
[422282959,1778793045000,-233.51889341,0.00017507,2]
[422282957,1778793045000,-200.0,0.00017507,2]
[422282965,1778793045000,-200.0,0.00017699,2]
[422282971,1778793045000,-150.0,0.00017699,2]
[422282966,1778793045000,-275.0,0.00017699,2]
[422282967,1778793045000,-150.0,0.00017699,2]
[422282972,1778793045000,-150.0,0.00017699,2]
[422282976,1778793045000,-1270.0,0.00017699,2]
[422282968,1778793045000,-150.0,0.00017699,2]
[422282970,1778793045000,-150.0,0.00017699,2]
[422282973,1778793045000,-926.0,0.00017699,2]
[422282975,1778793045000,-3542.0,0.00017699,2]
[422282969,1778793045000,-150.0,0.00017699,2]
[422282977,1778793045000,-150.0,0.00017699,2]
[422282974,1778793045000,-625.0,0.00017699,2]
[422282979,1778793045000,-3630.0,0.00017699,2]
[422282981,1778793045000,-376.61,0.000178,2]
[422282982,1778793045000,-270.3255266,0.00017808,2]
[422282980,1778793045000,-6052.0,0.00017699,2]
[422282962,1778793045000,-335.6632325,0.00017507,2]
[422282952,1778793045000,-163.89776066,0.00017384,2]
[422282978,1778793045000,-1223.0,0.00017699,2]
[422282948,1778793045000,-2243.58931893,0.00017054,2]
[422282950,1778793045000,-9955.91235119,0.00017237,2]
[422282920,1778793045000,-150.0,0.00016756,2]
[422282913,1778793045000,-2172.35911899,0.00016653,2]
[422282917,1778793045000,-2172.35911899,0.00016746,2]
[422282926,1778793045000,-192.0,0.00016756,2]
[422282918,1778793045000,-150.0,0.00016756,2]
[422282921,1778793045000,-150.0,0.00016756,2]
[422282923,1778793045000,-150.0,0.00016756,2]
[422282928,1778793045000,-2243.58931893,0.00016817,2]
[422282929,1778793045000,-2243.58931893,0.00016831,2]
[422282927,1778793045000,-724.85,0.00016767,2]
[422282938,1778793045000,-225.18697532,0.00016959,2]
[422282933,1778793045000,-1291.11,0.000169,2]
[422282931,1778793045000,-6420.0,0.00016888,2]
[422282936,1778793045000,-200.0,0.00016959,2]
[422282916,1778793045000,-156.58,0.00016712,2]
[422282939,1778793045000,-201.93286099,0.00016959,2]
[422282935,1778793045000,-266.23975045,0.00016959,2]
[422282946,1778793045000,-2243.58931893,0.00017018,2]
[422282944,1778793045000,-9955.91235119,0.00016983,2]
[422282945,1778793045000,-6526.0,0.00016983,2]
[422282943,1778793045000,-2243.58931893,0.00016962,2]
[422282941,1778793045000,-323.68682015,0.00016959,2]
[422282947,1778793045000,-2243.58931893,0.0001705,2]
[422282940,1778793045000,-2236.95670848,0.00016959,2]
[422282934,1778793045000,-2243.58931893,0.00016912,2]
[422282942,1778793045000,-225.18697532,0.00016959,2]
[422282930,1778793045000,-2172.35911899,0.00016872,2]
[422282949,1778793045000,-7456.0,0.00017089,2]
[422282932,1778793045000,-2243.58931893,0.00016892,2]
[422282937,1778793045000,-859.80605061,0.00016959,2]
[422283012,1778793046000,-2000.0,0.00018379,2]
[422283011,1778793046000,-2000.0,0.00018379,2]
[422283010,1778793046000,-2000.0,0.00018379,2]
[422283021,1778793046000,-1066.39130912,0.000185,2]
[422283031,1778793046000,-217.15233878,0.00018874,2]
[422283032,1778793046000,-9800.0,0.0001889,2]
[422283020,1778793046000,-2254.1,0.0001841,2]
[422283022,1778793046000,-200.0,0.00018603,2]
[422283024,1778793046000,-251.11897888,0.00018603,2]
[422283023,1778793046000,-958.81929743,0.00018603,2]
[422283017,1778793046000,-2000.0,0.00018379,2]
[422283034,1778793046000,-153.0,0.00018941,2]
[422283027,1778793046000,-360.96183467,0.00018603,2]
[422283030,1778793046000,-1291.11,0.000187,2]
[422283026,1778793046000,-2494.55939289,0.00018603,2]
[422283028,1778793046000,-163.89776066,0.00018682,2]
[422283029,1778793046000,-1066.39130912,0.000187,2]
[422283009,1778793046000,-2000.0,0.00018379,2]
[422283045,1778793046000,-2000.0,0.00018943,2]
[422283044,1778793046000,-232.0,0.00018941,2]
[422283033,1778793046000,-536.0,0.00018938,2]
[422283043,1778793046000,-600.0,0.00018941,2]
[422283038,1778793046000,-600.0,0.00018941,2]
[422283040,1778793046000,-600.0,0.00018941,2]
[422283041,1778793046000,-600.0,0.00018941,2]
[422283025,1778793046000,-225.18697532,0.00018603,2]
[422283014,1778793046000,-2000.0,0.00018379,2]
[422282996,1778793046000,-1953.0,0.0001805,2]
[422283016,1778793046000,-2000.0,0.00018379,2]
[422283036,1778793046000,-600.0,0.00018941,2]
[422282989,1778793046000,-4071.0,0.0001805,2]
[422282990,1778793046000,-232.0,0.0001805,2]
[422282984,1778793046000,-1066.39130912,0.00018,2]
[422282987,1778793046000,-257.0,0.0001805,2]
[422282985,1778793046000,-358.0,0.0001805,2]
[422282988,1778793046000,-2932.0,0.0001805,2]
[422282983,1778793046000,-350.0,0.00018,2]
[422282986,1778793046000,-162.0,0.0001805,2]
[422282992,1778793046000,-717.0,0.0001805,2]
[422283002,1778793046000,-2405.55389864,0.00018055,2]
[422283004,1778793046000,-348.0827721,0.00018055,2]
[422283013,1778793046000,-2000.0,0.00018379,2]
[422282991,1778793046000,-179.0,0.0001805,2]
[422282994,1778793046000,-209.0,0.0001805,2]
[422282993,1778793046000,-257.0,0.0001805,2]
[422282995,1778793046000,-428.0,0.0001805,2]
[422282997,1778793046000,-200.0,0.00018055,2]
[422282998,1778793046000,-924.60877284,0.00018055,2]
[422282999,1778793046000,-242.15909246,0.00018055,2]
[422283000,1778793046000,-217.15233878,0.00018055,2]
[422283008,1778793046000,-2193.2175057,0.00018238,2]
[422283007,1778793046000,-776.2688132,0.00018238,2]
[422283019,1778793046000,-1066.39130912,0.000184,2]
[422283015,1778793046000,-2000.0,0.00018379,2]
[422283018,1778793046000,-2000.0,0.00018379,2]
[422283006,1778793046000,-135527.469681,0.00018238,2]
[422283005,1778793046000,-1066.39130912,0.000182,2]
[422283042,1778793046000,-600.0,0.00018941,2]
[422283035,1778793046000,-600.0,0.00018941,2]
[422283075,1778793046000,-300.0,0.00018945,2]
[422283079,1778793046000,-300.0,0.00018945,2]
[422283077,1778793046000,-300.0,0.00018945,2]
[422283076,1778793046000,-300.0,0.00018945,2]
[422283078,1778793046000,-300.0,0.00018945,2]
[422283074,1778793046000,-300.0,0.00018945,2]
[422283080,1778793046000,-300.0,0.00018945,2]
[422283083,1778793046000,-2000.0,0.00018947,2]
[422283082,1778793046000,-190.0,0.00018945,2]
[422283084,1778793046000,-2000.0,0.00018947,2]
[422283085,1778793046000,-2000.0,0.00018947,2]
[422283086,1778793046000,-2000.0,0.00018947,2]
[422283092,1778793046000,-2000.0,0.00018947,2]
[422283094,1778793046000,-1900.0,0.00018949,2]
[422283096,1778793046000,-1900.0,0.00018949,2]
[422283089,1778793046000,-2000.0,0.00018947,2]
[422283093,1778793046000,-1900.0,0.00018949,2]
[422283090,1778793046000,-2000.0,0.00018947,2]
[422283088,1778793046000,-2000.0,0.00018947,2]
[422283095,1778793046000,-1900.0,0.00018949,2]
[422283091,1778793046000,-2000.0,0.00018947,2]
[422283097,1778793046000,-1900.0,0.00018949,2]
[422283098,1778793046000,-1900.0,0.00018949,2]
[422283099,1778793046000,-1900.0,0.00018949,2]
[422283037,1778793046000,-600.0,0.00018941,2]
[422283072,1778793046000,-948.0,0.00018944,2]
[422283073,1778793046000,-300.0,0.00018945,2]
[422283087,1778793046000,-2000.0,0.00018947,2]
[422283081,1778793046000,-300.0,0.00018945,2]
[422283039,1778793046000,-600.0,0.00018941,2]
[422283070,1778793046000,-1050.0,0.00018944,2]
[422283047,1778793046000,-2000.0,0.00018943,2]
[422283057,1778793046000,-200.0,0.00018943,2]
[422283046,1778793046000,-2000.0,0.00018943,2]
[422283053,1778793046000,-2000.0,0.00018943,2]
[422283052,1778793046000,-2000.0,0.00018943,2]
[422283049,1778793046000,-2000.0,0.00018943,2]
[422283050,1778793046000,-2000.0,0.00018943,2]
[422283051,1778793046000,-2000.0,0.00018943,2]
[422283056,1778793046000,-200.0,0.00018943,2]
[422283054,1778793046000,-2000.0,0.00018943,2]
[422283055,1778793046000,-200.0,0.00018943,2]
[422283048,1778793046000,-2000.0,0.00018943,2]
[422283058,1778793046000,-200.0,0.00018943,2]
[422283071,1778793046000,-1050.0,0.00018944,2]
[422283067,1778793046000,-1050.0,0.00018944,2]
[422283065,1778793046000,-2000.0,0.00018944,2]
[422283069,1778793046000,-1050.0,0.00018944,2]
[422283064,1778793046000,-2000.0,0.00018944,2]
[422283066,1778793046000,-1487.0,0.00018944,2]
[422283063,1778793046000,-187.0,0.00018943,2]
[422283061,1778793046000,-200.0,0.00018943,2]
[422283060,1778793046000,-200.0,0.00018943,2]
[422283062,1778793046000,-196.0,0.00018943,2]
[422283059,1778793046000,-200.0,0.00018943,2]
[422283068,1778793046000,-1050.0,0.00018944,2]
[422283170,1778793047000,-480.136372,0.00019178,2]
[422283166,1778793047000,-480.136372,0.00019178,2]
[422283168,1778793047000,-480.136372,0.00019178,2]
[422283160,1778793047000,-480.136372,0.00019178,2]
[422283164,1778793047000,-480.136372,0.00019178,2]
[422283162,1778793047000,-480.136372,0.00019178,2]
[422283145,1778793047000,-480.136372,0.00019178,2]
[422283153,1778793047000,-480.136372,0.00019178,2]
[422283147,1778793047000,-480.136372,0.00019178,2]
[422283149,1778793047000,-480.136372,0.00019178,2]
[422283156,1778793047000,-480.136372,0.00019178,2]
[422283158,1778793047000,-480.136372,0.00019178,2]
[422283151,1778793047000,-480.136372,0.00019178,2]
[422283183,1778793047000,-151.0,0.00019178,2]
[422283197,1778793047000,-150.0,0.0001944,2]
[422283187,1778793047000,-225.842796,0.00019178,2]
[422283189,1778793047000,-150.0,0.00019178,5]
[422283172,1778793047000,-480.136368,0.00019178,2]
[422283174,1778793047000,-151.0,0.00019178,2]
[422283191,1778793047000,-773.0,0.00019279,2]
[422283181,1778793047000,-151.0,0.00019178,2]
[422283193,1778793047000,-9990.0,0.00019324,2]
[422283176,1778793047000,-151.0,0.00019178,2]
[422283179,1778793047000,-151.0,0.00019178,2]
[422283195,1778793047000,-150.0,0.0001944,2]
[422283199,1778793047000,-150.0,0.0001944,2]
[422283212,1778793047000,-208.0,0.0001944,2]
[422283143,1778793047000,-480.136372,0.00019178,2]
[422283185,1778793047000,-151.0,0.00019178,2]
[422283141,1778793047000,-480.136372,0.00019178,2]
[422283100,1778793047000,-1900.0,0.00018949,2]
[422283130,1778793047000,-204.52142225,0.00019151,2]
[422283218,1778793047000,-150.0,0.000196,2]
[422283103,1778793047000,-2169.55567965,0.00019,2]
[422283106,1778793047000,-484.20064699,0.00019007,2]
[422283107,1778793047000,-358.0,0.0001905,2]
[422283101,1778793047000,-1900.0,0.00018949,2]
[422283102,1778793047000,-1419.0,0.00018949,2]
[422283105,1778793047000,-625.88462833,0.00019,2]
[422283104,1778793047000,-70843.85810045,0.00019,2]
[422283108,1778793047000,-162.0,0.0001905,2]
[422283119,1778793047000,-185.0,0.000191,4]
[422283109,1778793047000,-257.0,0.0001905,2]
[422283113,1778793047000,-179.0,0.0001905,2]
[422283110,1778793047000,-2932.0,0.0001905,2]
[422283111,1778793047000,-4071.0,0.0001905,2]
[422283112,1778793047000,-232.0,0.0001905,2]
[422283120,1778793047000,-623.0,0.00019102,2]
[422283117,1778793047000,-428.0,0.0001905,2]
[422283118,1778793047000,-1953.0,0.0001905,2]
[422283114,1778793047000,-717.0,0.0001905,2]
[422283115,1778793047000,-257.0,0.0001905,2]
[422283116,1778793047000,-209.0,0.0001905,2]
[422283122,1778793047000,-994.29561144,0.00019151,2]
[422283132,1778793047000,-480.136372,0.00019178,2]
[422283134,1778793047000,-480.136372,0.00019178,2]
[422283121,1778793047000,-200.0,0.00019151,2]
[422283137,1778793047000,-480.136372,0.00019178,2]
[422283126,1778793047000,-233.51889341,0.00019151,2]
[422283128,1778793047000,-2586.85809042,0.00019151,2]
[422283124,1778793047000,-260.4103811,0.00019151,2]
[422283139,1778793047000,-480.136372,0.00019178,2]
[422283207,1778793047000,-150.0,0.0001944,2]
[422283274,1778793047000,-5955.0,0.0002,2]
[422283205,1778793047000,-150.0,0.0001944,2]
[422283283,1778793047000,-25906.72029551,0.0002,2]
[422283281,1778793047000,-178.67497879,0.0002,2]
[422283285,1778793047000,-3950.0,0.0002,2]
[422283287,1778793047000,-26760.20964395,0.0002,2]
[422283289,1778793047000,-1310.90285881,0.0002,2]
[422283298,1778793047000,-4837.56699453,0.0002,2]
[422283291,1778793047000,-1058.15001842,0.0002,2]
[422283300,1778793047000,-2567.71167669,0.0002,2]
[422283293,1778793047000,-52298.5789593,0.0002,2]
[422283296,1778793047000,-152.0,0.0002,2]
[422283302,1778793047000,-400.0,0.0002,2]
[422283304,1778793047000,-8163.28,0.0002,2]
[422283305,1778793047000,-456.19789347,0.0002,2]
[422283279,1778793047000,-1552.79383552,0.0002,2]
[422283303,1778793047000,-2000.0,0.0002,2]
[422283319,1778793047000,-4071.0,0.0002005,2]
[422283307,1778793047000,-2000.0,0.0002001,2]
[422283323,1778793047000,-179.0,0.0002005,2]
[422283313,1778793047000,-162.0,0.0002005,2]
[422283321,1778793047000,-232.0,0.0002005,2]
[422283325,1778793047000,-717.0,0.0002005,2]
[422283315,1778793047000,-257.0,0.0002005,2]
[422283311,1778793047000,-358.0,0.0002005,2]
[422283317,1778793047000,-2932.0,0.0002005,2]
[422283309,1778793047000,-3244.034704,0.0002002,2]
[422283327,1778793047000,-257.0,0.0002005,2]
[422283329,1778793047000,-209.0,0.0002005,2]
[422283214,1778793047000,-500.0,0.00019565,2]
[422283306,1778793047000,-200.0,0.0002,10]
[422283276,1778793047000,-7076.52822619,0.0002,2]
[422283331,1778793047000,-428.0,0.0002005,2]
[422283258,1778793047000,-873.43,0.00019968,2]
[422283203,1778793047000,-150.0,0.0001944,2]
[422283216,1778793047000,-718.62,0.00019589,10]
[422283220,1778793047000,-189.0,0.00019656,2]
[422283201,1778793047000,-150.0,0.0001944,2]
[422283222,1778793047000,-572.0,0.00019678,5]
[422283210,1778793047000,-150.0,0.0001944,2]
[422283226,1778793047000,-200.0,0.00019699,2]
[422283224,1778793047000,-830.0,0.00019678,5]
[422283333,1778793047000,-1953.0,0.0002005,2]
[422283230,1778793047000,-270.0455652,0.00019699,2]
[422283242,1778793047000,-249.0,0.00019814,2]
[422283240,1778793047000,-150.0,0.00019814,2]
[422283248,1778793047000,-150.0,0.00019883,2]
[422283232,1778793047000,-242.15909246,0.00019699,2]
[422283228,1778793047000,-1031.08454906,0.00019699,2]
[422283244,1778793047000,-150.0,0.00019883,2]
[422283264,1778793047000,-1050.0,0.0001998,2]
[422283234,1778793047000,-2682.57183977,0.00019699,2]
[422283260,1778793047000,-1256.0,0.0001998,2]
[422283262,1778793047000,-1050.0,0.0001998,2]
[422283266,1778793047000,-1050.0,0.0001998,2]
[422283268,1778793047000,-851.0,0.0001998,2]
[422283272,1778793047000,-1398.0,0.0002,2]
[422283270,1778793047000,-163.89776066,0.0001998,2]
[422283254,1778793047000,-277.05,0.00019968,2]
[422283252,1778793047000,-2003.81543517,0.000199,3]
[422283238,1778793047000,-150.0,0.00019761,2]
[422283250,1778793047000,-192.0,0.00019883,2]
[422283236,1778793047000,-750.0,0.00019726,2]
[422283256,1778793047000,-836.74,0.00019968,2]